bitfinex-derivatives/quotes_SOLF0:USTF0_20230105
["timestamp","ask_amount","ask_price","bid_price","bid_amount"]
[1672895388520,14.92,13.411,13.403,74.625]
[1672895388731,14.85,13.405,13.399,10.0]
[1672895389157,14.85,13.405,13.398,111.985]
[1672895389675,14.85,13.405,13.404,37.311]
[1672895390515,14.82,13.407,13.404,37.311]
[1672895390834,37.36113808,13.409,13.405,14.85]
[1672895390835,0.06213808,13.409,13.405,14.85]
[1672895391044,14.89094119,13.412,13.406,37.306]
[1672895391254,14.89094119,13.412,13.407,10.0]
[1672895391465,14.89094119,13.412,13.406,37.306]
[1672895392200,14.89094119,13.412,13.404,0.06780798]
[1672895392201,14.85,13.41,13.404,0.06780798]
[1672895392515,14.85,13.409,13.404,0.06780798]
[1672895393355,52.15,13.409,13.405,37.307]
[1672895393567,52.15,13.409,13.404,0.06780798]
[1672895393882,14.85,13.407,13.404,0.06780798]
[1672895394096,14.85,13.407,13.404,37.311]
[1672895396825,14.9,13.408,13.404,37.311]
[1672895399970,14.9,13.408,13.404,111.935]
[1672895404183,14.9,13.408,13.404,37.311]
[1672895405654,14.92,13.411,13.406,49.95845811]
[1672895405856,0.07094119,13.412,13.407,47.302]
[1672895406389,37.36094119,13.412,13.408,10.0]
[1672895406599,14.9,13.411,13.404,0.06246762]
[1672895406812,14.9,13.411,13.406,37.305]
[1672895407859,52.194,13.411,13.406,37.305]
[1672895408067,14.85,13.409,13.406,37.305]
[1672895408904,14.85,13.409,13.404,0.06246762]
[1672895409120,14.9,13.406,13.404,0.06246762]
[1672895409330,14.9,13.406,13.401,74.636]
[1672895409746,14.9,13.406,13.402,37.316]
[1672895412063,14.85,13.403,13.402,37.316]
[1672895413323,14.85,13.403,13.401,37.32]
[1672895414893,14.76176753,13.403,13.401,37.32]
[1672895428768,14.92,13.404,13.401,37.32]
[1672895428987,14.92,13.406,13.401,37.32]
[1672895429932,14.92,13.406,13.401,37.1269267]
[1672895430873,14.92,13.406,13.401,47.1269267]
[1672895431087,0.07147116,13.408,13.401,47.1269267]
[1672895431297,0.07147116,13.408,13.402,10.0]
[1672895431509,7.116e-05,13.408,13.406,49.95845811]
[1672895431720,14.82,13.417,13.407,10.0]
[1672895432237,14.92,13.419,13.407,47.304]
[1672895432446,14.92,13.419,13.407,233.824]
[1672895432660,0.06642226,13.418,13.408,0.07078652]
[1672895432871,0.06642226,13.418,13.411,111.879]
[1672895433192,0.06642226,13.418,13.412,10.0]
[1672895433401,37.33942226,13.418,13.413,111.857]
[1672895433611,14.9,13.417,13.413,37.285]
[1672895433822,14.92,13.415,13.411,0.07098132]
[1672895434034,14.92,13.415,13.408,0.07024059]
[1672895434244,14.92,13.415,13.412,37.289]
[1672895436660,14.92,13.414,13.411,37.292]
[1672895437605,52.204,13.414,13.411,37.292]
[1672895442652,14.92,13.414,13.411,37.292]
[1672895444437,14.92,13.414,13.411,37.14757445]
[1672895448641,14.92,13.415,13.411,37.14757445]
[1672895452844,14.92,13.412,13.408,0.07024059]
[1672895453051,14.92,13.412,13.401,111.959]
[1672895453052,14.92,13.412,13.405,0.06274311]
[1672895453265,52.21,13.412,13.406,37.305]
[1672895453476,14.92,13.41,13.406,37.305]
[1672895453685,14.92,13.41,13.407,10.0]
[1672895453896,14.92,13.41,13.404,10.06672124]
[1672895454106,52.216,13.41,13.404,10.06672124]
[1672895454636,52.216,13.41,13.404,0.06672124]
[1672895455051,52.216,13.41,13.405,37.307]
[1672895455052,14.92,13.41,13.405,37.307]
[1672895455262,14.92,13.41,13.406,10.0]
[1672895455789,14.92,13.41,13.404,10.06672124]
[1672895455996,14.92,13.41,13.404,0.06672124]
[1672895456206,14.92,13.41,13.407,37.303]
[1672895457891,14.92,13.41,13.407,37.07465563]
[1672895466092,52.216,13.41,13.407,37.07465563]
[1672895466512,14.92,13.41,13.407,37.07465563]
[1672895467351,14.92,13.41,13.406,37.306]
[1672895468608,14.85,13.408,13.406,37.306]
[1672895469455,14.85,13.408,13.405,37.309]
[1672895469869,52.152,13.408,13.404,37.37772124]
[1672895470078,52.152,13.408,13.401,0.06554923]
[1672895470290,14.92,13.405,13.401,0.06554923]
[1672895470499,14.92,13.405,13.403,37.315]
[1672895473028,14.92,13.405,13.403,37.12016607]
[1672895474500,52.229,13.405,13.402,37.317]
[1672895474711,14.92,13.405,13.402,37.317]
[1672895477758,10.0,13.402,13.393,74.681]
[1672895477960,14.92,13.4,13.392,43.2826]
[1672895478167,14.92,13.4,13.393,10.0]
[1672895478379,14.92,13.4,13.393,47.34]
[1672895478590,14.9,13.408,13.397,10.0]
[1672895478804,14.92,13.411,13.398,14.96657236]
[1672895479011,0.06175347,13.407,13.399,121.976]
[1672895479231,0.06942229,13.408,13.4,10.0]
[1672895480490,0.06942229,13.408,13.403,111.942]
[1672895480702,0.06942229,13.408,13.404,10.0]
[1672895481013,2.74586597,13.41,13.405,111.927]
[1672895481225,2.74586597,13.41,13.406,10.0]
[1672895481639,14.9817375,13.411,13.407,37.303]
[1672895481855,14.92,13.411,13.407,37.303]
[1672895482487,14.93,13.411,13.407,37.303]
[1672895482699,52.223,13.411,13.407,37.303]
[1672895482912,14.93,13.411,13.407,37.303]
[1672895483541,52.223,13.411,13.407,37.303]
[1672895489321,2.74568895,13.41,13.407,37.303]
[1672895489635,40.04068895,13.41,13.407,37.303]
[1672895490266,37.295,13.41,13.407,37.303]
[1672895490476,37.295,13.41,13.407,37.19396048]
[1672895493102,44.755,13.41,13.407,37.19396048]
[1672895493832,44.755,13.41,13.406,37.306]
[1672895494043,7.39,13.408,13.404,0.06556307]
[1672895494254,7.39,13.408,13.402,74.631]
[1672895494669,7.39,13.404,13.401,0.06743291]
[1672895494884,7.39,13.404,13.399,74.649]
[1672895495935,44.703,13.404,13.401,37.319]
[1672895496355,44.703,13.404,13.399,74.649]
[1672895497939,44.703,13.404,13.4,37.322]
[1672895498356,7.46,13.401,13.4,37.322]
[1672895504134,44.71,13.401,13.398,0.06998704]
[1672895504349,7.39,13.399,13.395,0.06123144]
[1672895504561,7.44,13.396,13.395,37.336]
[1672895505297,7.44,13.396,13.395,37.22844605]
[1672895508660,7.44,13.396,13.393,74.681]
[1672895509815,7.44,13.396,13.395,37.337]
[1672895512125,7.44,13.396,13.38,112.131]
[1672895512126,29.84,13.393,13.38,112.131]
[1672895512441,7.46,13.385,13.381,10.0]
[1672895512647,7.46,13.385,13.383,37.368]
[1672895512857,7.46,13.385,13.384,10.0]
[1672895513068,7.44,13.387,13.384,10.0]
[1672895513278,7.44,13.387,13.384,47.368]
[1672895513493,7.46035526,13.39,13.384,122.104]
[1672895516430,0.06035526,13.39,13.384,122.104]
[1672895516750,0.00035526,13.39,13.386,122.083]
[1672895516956,7.44,13.392,13.386,122.083]
[1672895517173,7.44,13.392,13.387,10.0]
[1672895518224,14.87,13.393,13.388,112.066]
[1672895518435,14.87,13.393,13.389,10.0]
[1672895518640,0.07021744,13.394,13.389,10.0]
[1672895518856,0.00021744,13.394,13.391,10.0]
[1672895519171,14.93,13.396,13.391,10.0]
[1672895519908,14.93,13.396,13.392,112.033]
[1672895520117,14.93,13.396,13.393,10.0]
[1672895520329,14.93412721,13.398,13.393,10.0]
[1672895520539,14.9,13.396,13.394,37.34]
[1672895531259,14.9,13.396,13.394,37.22588161]
[1672895537670,52.235,13.396,13.393,37.342]
[1672895538827,14.9,13.396,13.393,37.342]
[1672895540716,52.235,13.396,13.393,37.342]
[1672895540926,14.9,13.396,13.393,37.342]
[1672895541768,14.9,13.396,13.389,0.06864753]
[1672895541979,14.84,13.394,13.389,0.06864753]
[1672895542295,37.344,13.393,13.389,0.06864753]
[1672895542505,37.344,13.393,13.386,10.06044718]
[1672895542820,14.86,13.387,13.386,0.06044718]
[1672895543027,14.86,13.387,13.382,0.06802588]
[1672895543244,14.86,13.387,13.384,37.367]
[1672895543553,14.86,13.387,13.385,10.0]
[1672895543765,14.86,13.387,13.385,47.364]
[1672895544184,14.86,13.387,13.383,10.0]
[1672895544185,14.86,13.387,13.382,74.742]
[1672895544405,52.22,13.387,13.38,0.0631111]
[1672895544811,52.22,13.387,13.383,37.37]
[1672895545020,14.86,13.387,13.384,10.0]
[1672895545968,14.86,13.387,13.382,10.0]
[1672895546181,0.18733756,13.384,13.382,10.0]
[1672895546393,0.18733756,13.384,13.383,37.371]
[1672895550385,0.18733756,13.384,13.383,112.113]
[1672895551014,0.23486927,13.383,13.382,37.372]
[1672895552385,0.23486927,13.383,13.382,112.119]
[1672895552907,0.23486927,13.383,13.382,37.372]
[1672895553113,0.23486927,13.383,13.381,37.375]
[1672895553329,0.23486927,13.383,13.378,0.06971787]
[1672895553963,0.23486927,13.383,13.38,37.377]
[1672895554168,0.23486927,13.383,13.38,47.377]
[1672895554380,0.23486927,13.383,13.38,37.377]
[1672895556061,0.23486927,13.383,13.38,37.2077857]
[1672895558059,7.71486927,13.383,13.38,37.2077857]
[1672895564682,0.18733756,13.384,13.381,10.0]
[1672895564886,0.18733756,13.384,13.382,112.12]
[1672895565097,0.06667682,13.388,13.383,10.0]
[1672895565309,7.48,13.389,13.384,112.102]
[1672895565624,7.48,13.389,13.385,10.0]
[1672895566882,7.48,13.389,13.386,37.362]
[1672895568255,7.48,13.389,13.384,37.366]
[1672895568461,7.5,13.387,13.385,37.364]
[1672895568780,7.5,13.387,13.382,10.0]
[1672895568982,44.859,13.387,13.384,37.367]
[1672895569197,7.5,13.387,13.385,10.0]
[1672895570041,7.39111316,13.387,13.385,10.0]
[1672895570981,7.39111316,13.387,13.385,47.365]
[1672895571397,7.39111316,13.387,13.385,37.365]
[1672895572561,7.39111316,13.387,13.385,37.364]
[1672895572771,7.39111316,13.387,13.386,10.0]
[1672895573301,7.39111316,13.387,13.384,10.0]
[1672895573609,7.39111316,13.387,13.386,10.0]
[1672895574134,7.39111316,13.387,13.385,37.364]
[1672895574346,7.39111316,13.387,13.384,84.735]
[1672895574974,7.39111316,13.387,13.384,37.367]
[1672895575184,7.39111316,13.387,13.385,10.0]
[1672895575499,7.39111316,13.387,13.385,47.362]
[1672895578131,7.5,13.386,13.381,0.06891168]
[1672895580125,44.863,13.386,13.383,37.37]
[1672895580757,7.5,13.386,13.383,37.37]
[1672895584859,7.5,13.386,13.383,37.20125284]
[1672895589897,7.44,13.388,13.384,10.0]
[1672895590108,7.44,13.388,13.385,37.364]
[1672895590318,7.44,13.388,13.386,10.0]
[1672895591895,7.23121235,13.388,13.387,37.359]
[1672895598198,7.23121235,13.388,13.384,84.734]
[1672895598417,7.5,13.386,13.385,37.364]
[1672895606715,7.5,13.386,13.385,37.15067009]
[1672895607869,7.5,13.386,13.381,74.81591168]
[1672895608080,7.48,13.383,13.381,74.81591168]
[1672895608395,7.48,13.383,13.382,37.373]
[1672895609131,7.48,13.383,13.382,47.373]
[1672895609443,7.48,13.383,13.382,37.373]
[1672895619856,7.42,13.385,13.383,10.0]
[1672895620066,7.42,13.385,13.384,37.367]
[1672895620276,7.42,13.385,13.384,47.367]
[1672895621749,7.42,13.385,13.384,37.367]
[1672895623636,7.44,13.387,13.385,7.42]
[1672895623854,74.681,13.394,13.385,7.42]
[1672895623855,7.48989418,13.391,13.386,112.086]
[1672895624058,7.56674417,13.393,13.386,112.086]
[1672895624270,7.5,13.393,13.387,10.0]
[1672895624588,7.5,13.393,13.388,112.063]
[1672895624789,7.4838331,13.394,13.389,10.0]
[1672895625005,7.4838331,13.394,13.39,112.05]
[1672895625215,7.4838331,13.394,13.391,10.0]
[1672895625532,7.4838331,13.394,13.392,37.345]
[1672895625738,7.4838331,13.394,13.393,10.0]
[1672895625952,7.4838331,13.394,13.393,47.343]
[1672895626270,7.4838331,13.394,13.393,37.343]
[1672895626795,7.4838331,13.394,13.392,37.343]
[1672895627004,7.48,13.393,13.392,37.343]
[1672895628050,7.48,13.393,13.391,37.348]
[1672895628263,7.48,13.393,13.389,10.0]
[1672895628999,7.48,13.393,13.39,37.35]
[1672895629417,7.48,13.391,13.39,37.35]
[1672895630891,7.48,13.391,13.389,37.353]
[1672895631100,7.48,13.391,13.389,47.353]
[1672895631310,7.48,13.391,13.389,37.353]
[1672895631939,7.5,13.39,13.387,37.41852932]
[1672895632149,7.44,13.388,13.387,37.357]
[1672895636977,7.44,13.388,13.384,0.06338805]
[1672895637193,7.44,13.385,13.383,74.737]
[1672895637605,7.44,13.385,13.384,37.367]
[1672895638026,7.44,13.385,13.384,37.1536864]
[1672895640557,7.44,13.385,13.383,37.37]
[1672895645286,7.5,13.388,13.384,10.0]
[1672895645497,7.5,13.388,13.385,37.364]
[1672895645918,7.5,13.388,13.386,10.0]
[1672895646129,7.5,13.388,13.386,47.36]
[1672895647284,7.5,13.388,13.386,122.085]
[1672895648651,7.5,13.388,13.386,112.085]
[1672895652223,7.5,13.388,13.386,112.00019708]
[1672895658214,7.48493675,13.392,13.386,112.00019708]
[1672895659894,7.48493675,13.392,13.387,10.0]
[1672895660106,7.48493675,13.392,13.388,112.068]
[1672895660315,7.42,13.392,13.389,10.0]
[1672895660525,7.42,13.392,13.39,37.351]
[1672895660738,7.42,13.392,13.391,10.0]
[1672895661365,10.16948198,13.392,13.389,10.0]
[1672895661576,10.16948198,13.392,13.389,47.351]
[1672895661996,7.42,13.392,13.389,47.351]
[1672895662519,7.42,13.392,13.389,37.351]
[1672895662936,7.42,13.392,13.389,10.0]
[1672895663361,7.42,13.392,13.39,37.351]
[1672895663993,7.49040211,13.395,13.391,122.045]
[1672895664203,7.42,13.395,13.391,122.045]
[1672895667988,7.42,13.395,13.391,112.045]
[1672895669774,7.44,13.397,13.392,10.0]
[1672895670090,7.44,13.397,13.394,10.0]
[1672895670514,0.06705435,13.398,13.396,10.0]
[1672895670722,7.5,13.399,13.396,10.0]
[1672895670928,7.5,13.399,13.397,111.994]
[1672895672406,7.5,13.399,13.397,37.331]
[1672895672829,7.44,13.398,13.397,37.331]
[1672895673982,7.44,13.398,13.393,74.74649013]
[1672895674616,7.44,13.398,13.396,112.001]
[1672895674828,7.44,13.398,13.397,10.0]
[1672895675351,7.44,13.398,13.394,10.0]
[1672895675770,7.44,13.398,13.394,47.338]
[1672895675975,7.44,13.398,13.395,10.0]
[1672895677350,7.44,13.398,13.394,47.338]
[1672895677563,7.44,13.398,13.394,37.338]
[1672895677873,7.44,13.398,13.396,37.334]
[1672895678926,7.44,13.398,13.393,0.06449013]
[1672895679136,7.5,13.395,13.393,0.06449013]
[1672895679447,7.5,13.395,13.394,37.338]
[1672895679653,7.5,13.395,13.394,0.0022]
[1672895679869,10.0,13.392,13.383,10.0]
[1672895680076,7.44,13.387,13.383,10.0]
[1672895680282,7.44,13.387,13.384,112.102]
[1672895680812,7.5,13.389,13.385,10.0]
[1672895681024,7.5,13.389,13.386,112.086]
[1672895681234,7.5,13.389,13.387,10.0]
[1672895682911,7.5,13.389,13.386,37.362]
[1672895682912,7.5,13.389,13.388,37.357]
[1672895685330,7.5,13.389,13.384,10.0]
[1672895685539,7.5,13.389,13.386,37.362]
[1672895685750,7.5,13.389,13.387,10.0]
[1672895686700,7.5,13.389,13.387,47.359]
[1672895687015,7.5,13.389,13.387,37.359]
[1672895691426,44.855,13.389,13.385,10.0]
[1672895691637,7.5,13.389,13.385,10.0]
[1672895692481,7.5,13.389,13.385,9.78124178]
[1672895692897,7.5,13.389,13.386,37.36]
[1672895693108,7.5,13.389,13.387,10.0]
[1672895693956,7.5,13.389,13.387,47.359]
[1672895695425,7.5,13.389,13.387,37.359]
[1672895696574,44.854,13.389,13.386,37.36]
[1672895697104,44.854,13.389,13.383,10.0]
[1672895697843,7.5,13.389,13.383,10.0]
[1672895698158,7.5,13.389,13.386,10.0]
[1672895698579,7.5,13.389,13.387,37.359]
[1672895698895,7.5,13.389,13.388,10.0]
[1672895699736,7.5,13.389,13.387,37.359]
[1672895700995,7.5,13.389,13.386,47.36]
[1672895701201,7.5,13.389,13.386,37.36]
[1672895702569,7.5,13.389,13.385,10.0]
[1672895703309,7.5,13.389,13.383,10.0]
[1672895703937,7.5,13.389,13.386,37.362]
[1672895704144,7.5,13.389,13.387,10.0]
[1672895704564,7.44,13.388,13.384,10.0]
[1672895704879,7.44,13.388,13.383,10.0]
[1672895705094,7.44,13.388,13.384,37.367]
[1672895705302,7.44,13.388,13.385,10.0]
[1672895705612,44.798,13.388,13.383,10.0]
[1672895705934,119.512,13.388,13.383,47.368]
[1672895706560,44.797,13.388,13.383,112.11]
[1672895706879,7.48,13.386,13.383,37.368]
[1672895707085,7.48,13.386,13.382,0.06896091]
[1672895707293,7.48,13.386,13.381,10.0]
[1672895707504,7.48,13.386,13.382,37.371]
[1672895707718,7.48,13.386,13.383,10.0]
[1672895709086,7.48,13.386,13.384,37.368]
[1672895709402,7.48,13.386,13.385,10.0]
[1672895710242,7.48,13.386,13.384,37.368]
[1672895719071,7.48,13.386,13.385,10.0]
[1672895719284,7.48,13.386,13.385,47.365]
[1672895720230,7.48,13.386,13.385,37.365]
[1672895720440,7.48,13.386,13.385,37.30015801]
[1672895722537,7.48,13.386,13.383,10.0]
[1672895723487,7.48,13.386,13.384,37.367]
[1672895723697,7.48,13.386,13.385,10.0]
[1672895724854,7.48,13.386,13.385,47.365]
[1672895726323,30.0,13.393,13.385,47.365]
[1672895726533,7.57046774,13.394,13.386,7.48]
[1672895726744,7.5,13.394,13.388,112.066]
[1672895727058,7.5,13.394,13.389,10.0]
[1672895727265,7.5,13.394,13.39,112.05]
[1672895727480,7.5,13.394,13.391,10.0]
[1672895727800,7.5,13.394,13.392,37.345]
[1672895728004,7.5,13.394,13.393,10.0]
[1672895728422,7.5,13.394,13.393,47.343]
[1672895729477,7.5,13.394,13.392,37.345]
[1672895729682,7.5,13.394,13.389,10.0]
[1672895730104,7.5,13.391,13.389,10.0]
[1672895730314,7.5,13.391,13.39,37.351]
[1672895731050,7.5,13.391,13.387,37.359]
[1672895731261,7.5,13.391,13.385,10.06122797]
[1672895731262,7.5,13.388,13.385,10.06122797]
[1672895731580,7.5,13.388,13.386,37.362]
[1672895731892,7.5,13.388,13.385,10.0]
[1672895732101,7.5,13.388,13.385,37.364]
[1672895732309,7.5,13.388,13.383,10.0]
[1672895732524,7.5,13.388,13.386,10.0]
[1672895733259,7.5,13.388,13.386,47.359]
[1672895734100,44.859,13.388,13.384,37.367]
[1672895734311,7.5,13.388,13.383,10.0]
[1672895734938,7.5,13.388,13.384,37.366]
[1672895735148,7.5,13.388,13.385,10.0]
[1672895735780,7.5,13.388,13.386,37.362]
[1672895736203,7.5,13.388,13.387,10.0]
[1672895736628,7.5,13.388,13.385,47.363]
[1672895737142,44.857,13.388,13.384,37.368]
[1672895737358,7.5,13.388,13.383,10.0]
[1672895739040,7.5,13.388,13.386,10.0]
[1672895739462,7.5,13.388,13.386,9.89227388]
[1672895739987,7.5,13.388,13.387,37.359]
[1672895740196,7.5,13.388,13.386,9.89227388]
[1672895740618,7.5,13.388,13.387,37.359]
[1672895741981,7.5,13.388,13.384,84.736]
[1672895742191,7.5,13.388,13.383,10.0]
[1672895742506,7.5,13.388,13.382,10.06525213]
[1672895742716,7.5,13.385,13.382,0.06525213]
[1672895742927,7.5,13.385,13.379,10.06065442]
[1672895743136,7.5,13.385,13.383,37.37]
[1672895745134,7.5,13.385,13.384,10.0]
[1672895745762,7.5,13.385,13.381,10.0]
[1672895746082,7.5,13.385,13.379,84.82065442]
[1672895746288,7.5,13.385,13.379,10.06065442]
[1672895746491,7.5,13.385,13.381,37.376]
[1672895746700,7.5,13.385,13.382,10.0]
[1672895746918,7.5,13.385,13.382,47.371]
[1672895748074,7.5,13.385,13.382,37.371]
[1672895748285,7.42,13.383,13.381,37.375]
[1672895750283,7.42,13.383,13.38,37.378]
[1672895750495,44.792,13.383,13.38,37.378]
[1672895751122,7.42,13.383,13.38,37.378]
[1672895751538,7.42,13.383,13.378,47.382]
[1672895751751,7.42,13.383,13.378,10.0]
[1672895751966,7.42,13.383,13.378,9.81959391]
[1672895752691,7.42,13.383,13.379,37.38]
[1672895753113,7.5,13.38,13.377,0.06750762]
[1672895753322,7.42,13.378,13.374,0.06603212]
[1672895753640,7.42,13.378,13.375,37.392]
[1672895753852,7.42,13.378,13.376,10.0]
[1672895754056,7.42,13.378,13.376,47.39]
[1672895754684,7.42,13.378,13.376,37.39]
[1672895755112,7.42,13.378,13.375,37.392]
[1672895755316,44.805,13.378,13.376,10.0]
[1672895755528,7.42,13.378,13.376,10.0]
[1672895755950,7.42,13.378,13.376,47.39]
[1672895757004,7.42,13.378,13.376,37.39]
[1672895757214,7.42,13.378,13.375,37.392]
[1672895757426,7.42,13.378,13.376,10.0]
[1672895758373,7.42,13.378,13.375,37.392]
[1672895758686,44.805,13.378,13.375,37.392]
[1672895759213,7.42,13.378,13.375,37.392]
[1672895759423,7.42,13.378,13.376,10.0]
[1672895760158,7.42,13.378,13.373,10.0]
[1672895760888,7.42,13.378,13.376,10.0]
[1672895761310,7.42,13.378,13.375,37.392]
[1672895761517,44.805,13.378,13.375,37.392]
[1672895761731,7.42,13.378,13.375,37.392]
[1672895762568,44.805,13.378,13.373,10.0]
[1672895763624,7.42,13.378,13.373,47.397]
[1672895764674,7.18469698,13.378,13.373,47.397]
[1672895767825,0.06342918,13.381,13.373,47.397]
[1672895768142,0.00342918,13.381,13.374,49.95845811]
[1672895768463,0.00342918,13.381,13.376,224.34]
[1672895768667,0.00342918,13.381,13.377,10.0]
[1672895768878,7.5,13.385,13.377,10.0]
[1672895769092,0.06721897,13.384,13.377,10.0]
[1672895769405,0.06721897,13.384,13.378,112.152]
[1672895769615,0.06721897,13.384,13.379,10.0]
[1672895770140,37.43521897,13.384,13.38,37.378]
[1672895770349,37.368,13.384,13.381,10.0]
[1672895771193,37.368,13.384,13.381,37.375]
[1672895771403,37.368,13.384,13.382,10.0]
[1672895771929,37.368,13.384,13.38,37.378]
[1672895772243,7.5,13.382,13.38,37.378]
[1672895772770,7.5,13.382,13.379,37.381]
[1672895773189,44.874,13.382,13.377,10.06500646]
[1672895773610,7.48,13.379,13.377,37.45200646]
[1672895773821,7.48,13.379,13.377,37.387]
[1672895774133,7.48,13.379,13.376,37.389]
[1672895774346,7.48,13.379,13.377,10.0]
[1672895775183,44.863,13.379,13.376,47.389]
[1672895775818,44.863,13.379,13.376,37.389]
[1672895776025,7.48,13.379,13.376,37.389]
[1672895778018,44.862,13.379,13.376,37.389]
[1672895778547,7.48,13.379,13.376,112.171]
[1672895778757,7.5,13.383,13.377,10.0]
[1672895779179,7.5,13.383,13.378,112.152]
[1672895779383,7.5,13.383,13.379,10.0]
[1672895779589,44.871,13.383,13.379,10.0]
[1672895780226,44.871,13.383,13.378,37.384]
[1672895780436,7.5,13.381,13.379,10.0]
[1672895780854,7.5,13.381,13.378,37.384]
[1672895781065,7.5,13.381,13.379,10.0]
[1672895781382,7.5,13.381,13.378,37.384]
[1672895781802,7.5,13.381,13.375,0.07025887]
[1672895781803,7.48,13.379,13.375,0.07025887]
[1672895782011,7.48,13.379,13.374,10.0]
[1672895782432,7.48,13.379,13.374,9.87187924]
[1672895782748,7.48,13.379,13.375,37.393]
[1672895782961,7.48,13.379,13.376,10.0]
[1672895783377,44.862,13.379,13.374,9.87187924]
[1672895783587,44.862,13.379,13.372,0.06054867]
[1672895783903,44.887,13.377,13.374,37.393]
[1672895785372,7.5,13.377,13.374,37.393]
[1672895786952,44.888,13.377,13.374,37.393]
[1672895791889,7.5,13.377,13.374,37.393]
[1672895792628,7.5,13.375,13.374,37.393]
[1672895792833,7.5,13.375,13.372,0.06054867]
[1672895793050,7.42,13.373,13.369,0.06958322]
[1672895793260,7.42,13.373,13.369,37.409]
[1672895793471,7.42,13.373,13.37,10.0]
[1672895794942,7.42,13.373,13.37,47.405]
[1672895795256,7.42,13.373,13.37,37.405]
[1672895796936,7.42,13.373,13.37,37.1822816]
[1672895797674,44.82,13.373,13.37,37.1822816]
[1672895798198,7.42,13.373,13.37,37.1822816]
[1672895800301,44.819,13.373,13.37,37.1822816]
[1672895802404,44.819,13.373,13.369,37.409]
[1672895802622,44.819,13.373,13.37,10.0]
[1672895803461,44.819,13.373,13.368,10.0]
[1672895804403,7.42,13.373,13.369,37.408]
[1672895805974,44.819,13.373,13.369,37.408]
[1672895809552,7.5,13.372,13.369,37.408]
[1672895809762,7.5,13.372,13.369,37.3070042]
[1672895815124,44.902,13.372,13.369,37.3070042]
[1672895815436,44.902,13.372,13.367,74.831]
[1672895815652,44.902,13.372,13.368,37.412]
[1672895815861,44.902,13.372,13.368,47.412]
[1672895816076,44.902,13.372,13.368,37.412]
[1672895816385,7.5,13.372,13.368,37.412]